[Event "Romanian Chess Championship 2023"]
[Site "Chess.com"]
[Date "2023.02.23"]
[Round "6"]
[White "Szabo, Gergely Andras"]
[Black "Stepanencu, Nicodim Cosmin"]
[Result "1-0"]
[WhiteElo "2514"]
[BlackElo "2283"]
[ECO "B12"]
[EventDate "2023.??.??"]
[Annotator "rafael"]
[PlyCount "85"]
[Beauty "7493513974362"]
[EventType "game"]
[TimeControl "5400+30"]

1.e4 c6 2.d4 d5 3.e5 Bf5 4.h4 {This is a very popular system against the Caro-Kann these days.} 4...h5 {This is the best answer, stopping the advance of the white pawns.} ( 4...h6 5.g4 Bd7 6.h5 {White's space advantage on the kingside has proved unpleasant.} ) 5.Bd3 Bxd3 6.Qxd3 Qa5+ 7.Nd2 ( 7.b4 $5 {[%c_effect b4;square;b4;type;Interesting;persistent;true] is a bold sacrifice that has been tried by very strong players.} ) 7...e6 8.Nf3 Nh6 9.O-O Nf5 {It's necessary to improve White's game in the next moves, since Black will manage to solve all the opening problems.} 10.c4 $6 {[%c_effect c4;square;c4;type;Inaccuracy;persistent;true]} ( 10.Nb3 $1 {[%c_effect b3;square;b3;type;GreatFind;persistent;true] is a better attempt. A recent game followed:} 10...Qb5 11.Qd1 c5 12.dxc5 Bxc5 13.a4 Qc6 {Praggnanandhaa-Carlsen, Meltwater Tour (rapid) 2022. Here 14.Bg5 gives White the advantage.} ) 10...Be7 {That's the problem: now White has to waste time defending the h4-pawn.} 11.g3 O-O 12.b3 $6 {[%c_effect b3;square;b3;type;Inaccuracy;persistent;true] It's better to prepare the advance b4 to hinder the move c6-c5, as we will see in the game.} ( 12.a3 $1 {[%c_effect a3;square;a3;type;GreatFind;persistent;true]} ) 12...Rd8 13.Rd1 ( 13.Bb2 c5 {is also fine for Black.} ) 13...c5 {This is a dream position for Black after the opening. This is a pawn structure that we often see in the French Defense, with the difference that here the light-squared bishop has already been exchanged.} 14.dxc5 $6 {[%c_effect c5;square;c5;type;Inaccuracy;persistent;true] A new move, but this makes things worse.} ( 14.Bb2 {was played in Villegas-Fiorito, Buenos Aires 2022.} 14...Nc6 {with a clear advantage for Black.} ) ( 14.cxd5 {is the lesser evil.} 14...Rxd5 15.Nc4 Qa6 16.Bg5 $1 {[%c_effect g5;square;g5;type;GreatFind;persistent;true] The d4-pawn is sacrificed but there are some attacking chances.} ( 16.Ne3 Qxd3 17.Rxd3 Nxe3 18.fxe3 {with a clear positional advantage for Black in Zha-Meiwes, Willingen 2022.} ) ) 14...Qxc5 $6 {[%c_effect c5;square;c5;type;Inaccuracy;keyPressed;undefined;persistent;true]} ( 14...Nc6 $1 {[%c_effect c6;square;c6;type;GreatFind;persistent;true] is better. White's position is already near collapse.} 15.Bb2 Bxc5 ) 15.Nf1 $6 {[%c_effect f1;square;f1;type;Inaccuracy;persistent;true]} ( 15.Bb2 ) 15...dxc4 $2 {[%c_effect c4;square;c4;type;Mistake;persistent;true] Stepanencu cannot resist the temptation to gain material, but this is a conceptually bad decision. It's clear that White has compensation for the queen after the forced sacrifice, but not only that: now the character of the game changes and chaos reigns on the board, with black's king in great danger. This could be avoided with the natural 15...Nc6, which would conserve a positional advantage without risk.} ( 15...Nc6 $1 {[%c_effect c6;square;c6;type;GreatFind;persistent;true]} ) 16.Qxd8+ {This is a consequence of White's last move.} 16...Bxd8 17.Rxd8+ Kh7 {White has rook and bishop against queen and pawn. The compensation is clear, as the knight on b8 is pinned and the black king is in danger. Objectively neither side has the advantage (at least that's what the computer believes), but in practice, I prefer to play with White here.} 18.Ne3 $2 {[%c_effect e3;square;e3;type;Mistake;persistent;true]} ( 18.bxc4 {is better. A possible sequence is:} 18...Qc7 19.Rf8 Qc5 20.Ng5+ ( 20.Rxf7 $6 {[%c_effect f7;square;f7;type;Inaccuracy;persistent;true]} 20...Nc6 ) ( 20.Rd8 Qc7 {with a strange draw.} ) 20...Kg6 21.Rh8 Qxe5 22.Rb1 {with a sharp game.} ) 18...Qa5 $1 {[%c_effect a5;square;a5;type;GreatFind;persistent;true] Threatening the rook on d8 and preparing to capture on b3.} ( 18...Nxe3 19.Bxe3 Qa5 20.Rad1 {with good compensation.} ) 19.Ng5+ Kg6 20.Ng2 $1 {[%c_effect g2;square;g2;type;GreatFind;persistent;true] A brilliant and desperate resource.} 20...Nxg3 $2 {[%c_effect g3;square;g3;type;Mistake;persistent;true] A smart move. Too smart, to be honest. Black needs to release the f5-square to the king, but there's a better way to do this.} ( 20...Qxd8 $2 {[%c_effect d8;square;d8;type;Mistake;persistent;true]} 21.Nf4+ Kh6 22.Nxf7+ Kh7 23.Nxd8 ) ( 20...Nh6 $1 {[%c_effect h6;square;h6;type;GreatFind;persistent;true] Here White is lost. A possible continuation is:} 21.Nf4+ Kf5 22.Ngxe6 $5 {[%c_effect e6;square;e6;type;Interesting;persistent;true]} 22...fxe6 23.Rf8+ Ke4 $1 {[%c_effect e4;square;e4;type;GreatFind;persistent;true] The king needs to sidestep the mines.} ( 23...Kxe5 $2 {[%c_effect e5;square;e5;type;Mistake;persistent;true]} 24.Bb2+ Ke4 25.Rc1 $1 {[%c_effect c1;square;c1;type;GreatFind;persistent;true] with a decisive attack.} ) 24.f3+ Kd4 $1 {[%c_effect d4;square;d4;type;GreatFind;persistent;true] The king is almost completing the march across the board in search of a safe place.} ) 21.Nf4+ ( 21.fxg3 $2 {[%c_effect g3;square;g3;type;Mistake;persistent;true]} 21...Qxd8 22.Nf4+ Kf5 ) 21...Kf5 22.Nxf7 $1 {[%c_effect f7;square;f7;type;GreatFind;persistent;true] What a crazy position $1} 22...Qc3 ( 22...Qe1+ $2 {[%c_effect e1;square;e1;type;Mistake;persistent;true] gives nothing.} 23.Kg2 ) 23.Kg2 $3 {[%c_effect g2;square;g2;type;Brilliant;persistent;true] I have a peculiar taste. In the midst of so many spectacular sacrifices, for me this is the best move of the game. A delicate king move, ignoring attacked pieces.} ( 23.Rb1 {is a mundane move. According to the computer, the game can end in a draw in many ways. One of them is:} 23...Qc2 24.Ra1 Qc3 {Another really strange repetition, but there's nothing normal in this game.} ) 23...Ne4 ( 23...Qxa1 $2 {[%c_effect a1;square;a1;type;Mistake;persistent;true]} 24.Nd6+ Kxe5 ( 24...Kg4 25.f3+ Kxh4 26.Ng6# ) 25.Nxc4+ Kf5 26.Rf8+ Ke4 27.f3+ Kd4 28.Bb2+ {winning material.} ) ( 23...Nc6 $5 {[%c_effect c6;square;c6;type;Interesting;persistent;true] A wise man once said that one of the advantages of having a material advantage is that you can try to return some pieces at the right time.} 24.Rxa8 Nd4 {The stage is set for a perpetual check draw.} 25.Rf8 Qf3+ 26.Kh2 Qh1+ 27.Kxg3 Qf3+ 28.Kh2 Qxf2+ 29.Kh3 Qf3+ ) 24.Rf8 Kg4 $2 {[%c_effect g4;square;g4;type;Mistake;persistent;true] This move loses spectacularly.} ( 24...Qxa1 $2 {[%c_effect a1;square;a1;type;Mistake;persistent;true]} 25.Nd6+ Kxe5 26.Nxc4+ Kd4 27.Bb2+ Qxb2 28.Nxb2 $18 ) ( 24...Nc6 $1 {[%c_effect c6;square;c6;type;GreatFind;persistent;true] leads to a draw.} 25.Nh6+ ( 25.Rxa8 $2 {[%c_effect a8;square;a8;type;Mistake;persistent;true]} 25...Nxe5 $1 {[%c_effect e5;square;e5;type;GreatFind;persistent;true]} ( 25...Qxa1 {is not so clear after} 26.Rf8 $1 {[%c_effect f8;square;f8;type;GreatFind;persistent;true]} ) 26.Nxe5 Qxa1 ( 26...Kxe5 27.bxc4 $1 {[%c_effect c4;square;c4;type;GreatFind;persistent;true] with the clever idea:} 27...Qxa1 $2 {[%c_effect a1;square;a1;type;Mistake;persistent;true]} 28.Bb2+ $1 {[%c_effect b2;square;b2;type;GreatFind;persistent;true]} 28...Qxb2 29.Nd3+ ) 27.Nxc4 Qxc1 28.Rf8+ Nf6 29.Nxh5 {The knights are tricky and White has drawing chances, but not more than that. Let's see a selfmate variation:} 29...Kg6 30.Ne5+ $1 {[%c_effect e5;square;e5;type;GreatFind;persistent;true]} ) 25...Kxe5 26.Nf7+ Kf5 ( 26...Kd4 $2 {[%c_effect d4;square;d4;type;Mistake;persistent;true]} 27.Be3+ $18 ) ( 26...Kf6 $2 {[%c_effect f6;square;f6;type;Mistake;persistent;true]} 27.Nd6+ Ke7 28.Nxe4 Qxa1 29.Ba3+ $18 ) 27.Nh6+ ) 25.Be3 {Not bad, but there's an even better solution that seems to be taken straight from a composition.} ( 25.Nh6+ $1 {[%c_effect h6;square;h6;type;GreatFind;persistent;true]} 25...gxh6 26.Nd3 $3 {[%c_effect d3;square;d3;type;Brilliant;persistent;true] What a fantastic move $1 The knight gives way to the rook.} 26...Kxh4 ( 26...Qxd3 27.Rf4# ) 27.Bxh6 $1 {[%c_effect h6;square;h6;type;GreatFind;persistent;true] The only winning move $1 The bishop must go the whole way in order to remove the g5-square from the king.} 27...Qxa1 28.Rf4# ) 25...Nxf2 {A desperate attempt. to avoid the inevitable.} ( 25...Qxa1 26.Nh6+ gxh6 27.f3+ Kxh4 28.Ng6# ) 26.Nd5 $1 {[%c_effect d5;square;d5;type;GreatFind;persistent;true] Another wonderful move. Again the idea is to release the f4-square for the rook.} 26...Qxa1 ( 26...exd5 27.Nh6+ Kxh4 ( 27...gxh6 28.Rf4# ) 28.Rf4+ Kg5 ( 28...Ng4 29.Rh1+ Kg5 30.Rxg4# ) 29.Rg4# {This game has so many beautiful mating lines $1} ) 27.Nh6+ $1 {[%c_effect h6;square;h6;type;GreatFind;persistent;true]} 27...Kxh4 ( 27...gxh6 28.Rf4# ) 28.Bxf2+ ( 28.Rf4+ {doesn't work now:} 28...Ng4 ) 28...Kg5 29.Be3+ Kg6 ( 29...Kh4 30.Rf4+ Kg5 31.Rg4# ) 30.Ne7+ Kh7 31.Nf7 Nc6 32.Ng5+ Kh6 33.Nf7+ Kh7 34.Ng5+ Kh6 35.Nxe6+ Kh7 36.Ng5+ Kh6 37.Nf5+ Kg6 38.Nh4+ Kh6 39.Nf7+ Kh7 40.Ng5+ Kh6 41.Rxa8 $1 {[%c_effect a8;square;a8;type;GreatFind;persistent;true] A pity there's no way to mate without taking the rook, but life isn't perfect.} 41...g6 42.Rg8 Nxe5 43.Rxg6+ $3 {[%c_effect g6;square;g6;type;Brilliant;persistent;true] A worthy coronation of the attack. Black resigned.} ( 43.Rxg6+ Nxg6 44.Nf5# ) 1-0

[Event "WR Chess Masters 2023"]
[Site "Chess.com"]
[Date "2023.02.23"]
[Round "7"]
[White "Aronian, Levon"]
[Black "Nepomniachtchi, Ian"]
[Result "0-1"]
[WhiteElo "2736"]
[BlackElo "2793"]
[ECO "D37"]
[EventDate "2023.??.??"]
[Annotator "rafael"]
[PlyCount "106"]
[Beauty "6808617939524"]
[EventType "swiss"]
[EventRounds "9"]
[TimeControl "5400+30"]

1.d4 Nf6 2.c4 e6 3.Nf3 d5 4.Nc3 Be7 {The Queen's Gambit Declined is the most classic of all variations that start with the queen's pawn. It has stood the test of time and has been played by virtually every great chess player in history for about two centuries. Yes, sometimes it's not the most exciting defense, and if you need to win with Black, maybe it's not the most recommended—but we all have flaws, right $2 At the end of the day, there's no better defense than this.} 5.Bf4 O-O 6.e3 c5 ( 6...Nbd7 {is the most popular move nowadays.} ) 7.dxc5 Bxc5 8.cxd5 ( 8.Qc2 {is the main move.} ) 8...Nxd5 9.Nxd5 exd5 10.Bd3 ( 10.a3 {is the move played most often, to avoid the check on b4.} ) 10...Bb4+ 11.Nd2 Nc6 ( 11...Qf6 {This was Carlsen's choice in a recent rapid game.} 12.Rb1 ( 12.a3 {is better.} ) 12...Bf5 13.Bxf5 Qxf5 14.O-O Nc6 15.Nf3 Rfd8 {with an equal position in Keymer-Carlsen, Julius Baer GenCup (rapid) 2022.} ) 12.O-O Be7 {This is a typical maneuver. Black takes the bishop to f6.} 13.Qb3 {A novelty that will not have much success. Interestingly, the queen, the piece that executes the first new move of the game, will be a constant concern for White during this game.} ( 13.Rc1 {Nepomniachtchi himself has already played this position as White.} 13...Qb6 14.Qc2 Nb4 $2 {[%c_effect b4;square;b4;type;Mistake;persistent;true]} ( 14...g6 ) 15.Bxh7+ Kh8 16.Qc7 $1 {[%c_effect c7;square;c7;type;GreatFind;persistent;true]} 16...Qxc7 17.Rxc7 Bd8 18.Bd6 $1 {[%c_effect d6;square;d6;type;GreatFind;persistent;true]} 18...Bxc7 19.Bxf8 a5 20.Bb1 {White later won in Nepomniachtchi-Nakamura, St. Louis 2019.} ) ( 13.a3 g6 14.Rc1 Bf6 15.b4 Qe7 16.Nf3 Rd8 {Black was close to equality in Caruana-Anand, St. Louis 2018.} ) 13...Bf6 14.a3 Qe7 15.Rac1 Be6 {Aronian probably confused his opening preparation since Black played natural moves and already has a comfortable position.} 16.Qb5 {Removing the queen from the x-ray.} 16...Rac8 17.Rc2 a6 18.Qb6 Qd7 19.Nb3 Bd8 20.Qc5 Be7 21.Qb6 Bd8 22.Qc5 Be7 23.Qb6 {Nepomniachtchi now has the option to make a draw with a move repetition, and many players would choose that route. A quick draw with Black isn't a bad day's work, right $2 Hats off to his fighting spirit.} 23...g5 $5 {[%c_effect g5;square;g5;type;Interesting;persistent;true]} 24.Bg3 Bd8 25.Qc5 Be7 26.Qb6 {The draw is still at hand, but Black decides to play on.} 26...f5 {A risky decision that will be rewarded. As they say, \"fortune favors the bold.\"} 27.f3 ( 27.Nc5 $1 {[%c_effect c5;square;c5;type;GreatFind;persistent;true] is the best move. After} 27...Bxc5 28.Rxc5 f4 29.exf4 gxf4 30.Bh4 Ne5 31.Rxc8 Rxc8 32.Bb1 d4 {The position is double-edged. Black has active pieces and a passed d-pawn, but his king is open, and White has a dangerous bishop pair.} ) 27...Bd8 28.Qc5 Be7 29.Qb6 Bd8 30.Qc5 f4 {No draw $1} ( 30...Qf7 {is an interesting try since White's queen is in an uncomfortable situation and Black is preparing to move the knight.} ) 31.exf4 gxf4 32.Bf2 Be7 33.Qb6 Bd8 {This is the last time the repetition of moves with Bd8-e7 was played. Time to move on $1} 34.Qc5 Bf6 35.Rfc1 ( 35.Qb6 ) 35...Qg7 36.Qd6 Rce8 37.Re1 $2 {[%c_effect e1;square;e1;type;Mistake;persistent;true] This is innacurate.} ( 37.Nc5 {is not the best:} 37...Bh3 38.Bf1 Nd4 $1 {[%c_effect d4;square;d4;type;GreatFind;persistent;true]} 39.Qxd5+ Kh8 40.Bxd4 Bxd4+ 41.Kh1 Be3 {with the initiative.} ) ( 37.Rd1 $1 {[%c_effect d1;square;d1;type;GreatFind;persistent;true] This is an improvement—the position is very sharp. The machine shows some crazy variations, one of them featuring a wonderful combination. Disclaimer: The following moves are not forced, but they illustrate the complexity of the position.} 37...Ne5 ( 37...Be5 38.Qc5 Bxb2 39.Bxa6 $5 {[%c_effect a6;square;a6;type;Interesting;persistent;true]} 39...Ne5 40.Rxb2 Nxf3+ 41.Kh1 Qxb2 42.gxf3 Qxb3 43.Rg1+ Kf7 44.Qc7+ Re7 45.Qxf4+ ( 45.Rg7+ Kxg7 46.Qxe7+ Bf7 {This also ends in a draw.} ) 45...Ke8 46.Qb8+ {With perpetual check. Typical computer sense of humor.} ) 38.Nd4 Bh3 39.Bf1 Kh8 40.Kh1 Rg8 $1 {[%c_effect g8;square;g8;type;GreatFind;persistent;true]} 41.Bg1 $1 {[%c_effect g1;square;g1;type;GreatFind;persistent;true]} ( 41.gxh3 $2 {[%c_effect h3;square;h3;type;Mistake;persistent;true] This loses in spectacular fashion.} 41...Nd3 $3 {[%c_effect d3;square;d3;type;Brilliant;persistent;true] Black goes on to remove the defenders of the g-file.} 42.Rxd3 ( 42.Bxd3 Qg2# ) 42...Re1 $3 {[%c_effect e1;square;e1;type;Brilliant;persistent;true]} 43.Bxe1 Qg1# ) 41...Nd3 $1 {[%c_effect d3;square;d3;type;GreatFind;persistent;true]} 42.Nf5 $1 {[%c_effect f5;square;f5;type;GreatFind;persistent;true] Blow after blow $1} ( 42.Rxd3 $2 {[%c_effect d3;square;d3;type;Mistake;persistent;true]} 42...Re1 {with a decisive attack.} ) 42...Bxf5 43.Bxd3 Rc8 $1 {[%c_effect c8;square;c8;type;GreatFind;persistent;true] Trying to remove the g2-pawn's defense.} 44.Re2 Rce8 $1 {[%c_effect e8;square;e8;type;GreatFind;persistent;true]} 45.Rc2 Rc8 {With a draw by repetition. Chess really is inexhaustible for the human mind.} ) 37...Ne5 {White's position is now on the brink of collapse.} 38.Nd4 $2 {[%c_effect d4;square;d4;type;Mistake;persistent;true] This loses immediately.} ( 38.Kh1 {is the move suggested by the computer, but it's nearly impossible to play like this.} ) 38...Bh3 39.Bf1 Nf7 $1 {[%c_effect f7;square;f7;type;GreatFind;persistent;true] A subtle move that wins material.} 40.Qxd5 Rxe1 41.Bxe1 Bxd4+ {Black is a piece up for only one pawn. The rest is easy for Nepomniachtchi.} 42.Kh1 Bc8 43.Bc4 Re8 44.Bb4 Qf6 45.Bd3 Bc3 $1 {[%c_effect c3;square;c3;type;GreatFind;persistent;true] A nice move, exploiting the back-rank weakness.} 46.Bxc3 Qxc3 47.g4 ( 47.Rxc3 Re1+ 48.Bf1 Rxf1# ) 47...Qf6 48.Rc7 Re1+ 49.Kg2 Be6 50.Qh5 Qxb2+ 51.Kh3 h6 52.Qg6+ Qg7 53.Kh4 Rh1 0-1

[Event "E Women's Candidates Tournament 2022"]
[Site "Chess.com"]
[Date "2023.03.31"]
[Round "3"]
[White "Tan, Zhongyi"]
[Black "Lei, Tingjie"]
[Result "1/2-1/2"]
[WhiteElo "2526"]
[BlackElo "2545"]
[ECO "D32"]
[EventDate "2023.??.??"]
[Annotator "rafael"]
[PlyCount "80"]
[Beauty "6116838740998"]
[EventType "game"]
[EventCountry "FID"]
[TimeControl "5400+30"]

1.d4 d5 2.c4 e6 3.Nc3 c5 4.cxd5 exd5 5.Nf3 Nc6 6.dxc5 ( 6.g3 {is by far the main move and leads to the main line of the Tarrasch Defense.} ) 6...d4 7.Na4 Bxc5 8.Nxc5 Qa5+ 9.Bd2 Qxc5 10.b4 ( 10.Rc1 {is the most popular move.} ) 10...Qb6 {A solid move, but Black has other interesting choices.} ( 10...Qf5 11.Rc1 Nf6 12.Rc5 {was played in Ding-Bai, Hangzhou 2022.} ) ( 10...Nxb4 $5 {This seems risky, but White has been unable to prove an advantage.} 11.Rc1 Qd6 ( 11...Qe7 12.Qa4+ Nc6 13.Nxd4 Qe4 14.e3 Bd7 {This position was played in some correspondence games, all of them ended in a draw.} ) 12.e3 $1 Ne7 ( 12...dxe3 {Even this move, which apparently walks right into a trap, is possible.} 13.Bc3 $1 Qxd1+ 14.Kxd1 {The knight and the pawn on g7 are attacked, but the fight is not over.} 14...Nxa2 15.Bxg7 Nxc1 16.Kxc1 Bd7 17.fxe3 Rc8+ 18.Kd2 f6 19.Bxh8 Kf7 20.Bd3 Ne7 {After this crazy sequence, the bishop is trapped, and Black has good drawing chances.} ) 13.Nxd4 O-O {Black's advantage in development compensates White's bishop pair.} ) 11.Qa4 a6 12.e3 dxe3 13.fxe3 Rb8 14.b5 axb5 15.Qxb5 Qxb5 16.Bxb5 Nf6 {All of this was played quickly, so I suppose both players were still on preparation territory.} ( 16...Bd7 17.Bc3 Nf6 18.Bxf6 gxf6 19.O-O Ke7 {Black held his higher-rated opponent to a draw in Shevchenko-Song, Biel 2015.} ) 17.Ne5 {A new move.} ( 17.Bc3 {was played in some correspondence games. The most recent continued:} 17...O-O 18.Bxf6 gxf6 19.a4 Be6 {with the inevitable draw in Susla-Martin, email 2019.} ) 17...O-O $1 {Played after some thought. This is an excellent pawn sacrifice that gives Black good compensation.} ( 17...Bd7 $6 {Trying to hold the pawn is worse. White has a positional advantage, with a pair of bishops against a pair of knights.} 18.Nxd7 Nxd7 19.Ke2 ) 18.Nxc6 {Tan took a long time before playing this move. She was certainly considering whether to take on c6 with the knight or with the bishop.} ( 18.Bxc6 bxc6 19.Nxc6 Rb2 $1 {This is the clearest path to equality.} 20.Bc3 Rxg2 21.Ne7+ Kh8 22.Bxf6 gxf6 23.Nxc8 Rxc8 24.a4 Rcc2 25.a5 {The rooks execute a perpetual check, and the game ends in a draw.} ) 18...bxc6 19.Bxc6 Ba6 ( 19...Rb2 {is also good:} 20.Bc3 Rc2 21.Bxf6 Rxc6 22.Bd4 {Black has enough compensation for a draw. This is similar to what will happen later in the game.} ) 20.Bf3 {A good defensive move.} ( 20.Kf2 Rb2 {with excellent compensation.} ) 20...Rfe8 ( 20...Rb2 {Again this move is possible:} 21.Bc3 Rc2 {with an equal position.} ) 21.Kf2 Rb2 22.Rhd1 Ne4+ 23.Bxe4 {It's better to capture the knight immediately.} ( 23.Ke1 f5 {Black is very active and prepares f5-f4 next.} ( 23...Nxd2 24.Rxd2 Rxe3+ 25.Kd1 Rb8 {This also ends in a draw.} ) ( 23...Nc3 {is not so good after} 24.Rdc1 ) ) 23...Rxe4 24.Rab1 Reb4 $1 25.Rxb2 Rxb2 26.a4 {White is a pawn up, but with an active rook and the presence of opposite-colored bishops, Black has an easy draw.} 26...f5 27.Ke1 Bd3 28.a5 g5 29.Ra1 ( 29.Rc1 {doesn't change much. Black can exchange rooks or simply play 29...Ra2, with a draw in both cases.} 29...Ra2 ( 29...Rb1 ) ) 29...Rb1+ {The simplest. In endgames with opposite-colored bishops, one of the players tries to build a fortress while the other tries to break it. The game becomes schematic, and it's possible to calculate many moves ahead until reaching a mathematical conclusion. Of course, this isn't always easy to do, especially with little time left on the clock, as we saw in the dramatic second game of the match.} 30.Rxb1 Bxb1 31.Bb4 Be4 32.g3 g4 33.Kd2 Kf7 34.Kc3 Ke6 35.Kd4 Kd7 {A curious move. The result doesn't change, but normally the simplest plan is to follow the white king without letting it penetrate the position, for example:} ( 35...Bf3 36.a6 Be4 37.a7 Bf3 38.Kc5 Kd7 {with a simple fortress.} ) 36.a6 Kc6 37.Bc5 Kb5 38.a7 Ka6 39.Ke5 Kb7 {White has no winning plan available since the h7-pawn cannot be captured.} 40.Kd6 ( 40.Kf6 Ka8 41.Kg7 Kb7 42.Kxh7 $4 {This even loses after} 42...f4+ 43.Kh6 f3 ) 40...Bd3 1/2-1/2